Workbook

Sheet BuffConfig
A1: ID | B1: nameTest | C1: decTest | D1: icon | E1: buffName | F1: buffEffectDes | G1: buffGroup | H1: overlayCount | I1: effectValue | J1: timeType | K1: buffTime | L1: buffType | M1: dispelType | N1: IsControlBuff | O1: IsHideIcon | P1: scriptsName
A2: int | B2: string | C2: string | D2: string | E2: int | F2: int | G2: int | H2: int | I2: float[] | J2: int | K2: float | L2: int | M2: int | N2: int | O2: int | P2: string
A4: ID （id段不再区分debuff和buff） | B4: 测试用的名字 | C4: 测试用的描述 | D4: 图标 | E4: buff名称 | F4: buff描述 | G4: buff组 详细见buff组说明 | H4: 叠加个数（超过后不在有新效果） | I4: 效果值 | J4: 计时类型 1.堆叠计时 2.独自计时 | K4: 默认持续时间 -1是永久（技能里可以修改这个值） | L4: 1=增益 2=减益 3=状态 | M4: 驱散类型 1=能驱散 2=不能驱散 | N4: 是否是控制buff 1=是 0=不是 | O4: 是否隐藏图标 1=是 0=不是 | P4: 脚本名字 | Q4: 5层值 | T4: 0.8
A5: =G5*10+1 -> 10011 | B5: 寒气 | C5: 每到寒气对敌人的功法运转速度降低{0}% | D5: ="icon_b"&G5 -> icon_b1001 | E5: 10721 | F5: 10754 | G5: 1001 | H5: 15 | I5: 1 | J5: 2 | K5: 15 | L5: 2 | M5: 1 | N5: 0 | O5: 0 | P5: ="b_"&G5 -> b_1001 | Q5: 50 | R5: 0 | S5: 15 | T5: =T$4^R5 -> 1 | U5: =S5*T5 -> 15 | V5: =SUM(U$5:U5) -> 15 | Y5: 150 | Z5: 250
A6: 10021 | B6: 冻结 | C6: 敌人不能做任何作用，功法将会被封住。 | D6: ="icon_b"&G6 -> icon_b1002 | E6: 10722 | F6: 10755 | G6: 1002 | H6: 1 | I6: 0 | J6: 2 | K6: 3 | L6: 2 | M6: 1 | N6: 1 | O6: 0 | P6: b_1002 | Q6: 50 | R6: 0 | S6: 15 | T6: 1 | U6: 15 | V6: =SUM(U$5:U6) -> 30 | Y6: 150 | Z6: 250
A7: 10031 | B7: 毒 | C7: 每层毒对敌人每秒造成{0}%木属性伤害，{1}层毒时毒气会入侵五脏,敌人每使用一次功法对应功法的伤势增加1 | D7: icon_b1003 | E7: 10723 | F7: 10756 | G7: 1003 | H7: 15 | I7: 1.5;15;1 | J7: 2 | K7: 15 | L7: 2 | M7: 1 | N7: 0 | O7: 0 | P7: b_1003 | Q7: 50 | R7: 0 | S7: 15 | T7: 1 | U7: 15 | V7: =SUM(U$5:U7) -> 45 | Y7: 150 | Z7: 250
D8: icon_b1004 | E8: 10724 | F8: 10757 | G8: 1004 | H8: 1 | I8: 1 | J8: 2 | K8: 10 | L8: 2 | M8: 1 | N8: 0 | O8: 0 | P8: b_1004 | Q8: 50 | R8: 0 | S8: 15 | T8: 1 | U8: 15 | V8: =SUM(U$5:U8) -> 60 | Y8: 150 | Z8: 250
A9: 10051 | B9: 灼热 | C9: 对敌人造成{0}火属性灼烧伤害，满层时敌人会受到痛苦，敌人使用功法时自身受到当前生命{1}%伤害 | D9: icon_b1005 | E9: 10725 | F9: 10758 | G9: 1005 | H9: 15 | I9: 1;0.3 | J9: 2 | K9: 15 | L9: 2 | M9: 1 | N9: 0 | O9: 0 | P9: b_1005 | Q9: 50 | R9: 0 | S9: 15 | T9: 1 | U9: 15 | V9: =SUM(U$5:U9) -> 75 | Y9: 150 | Z9: 250
A10: 10061 | B10: 昏厥 | C10: 敌人眩晕状态不能做任何事 | D10: icon_b1006 | E10: 10726 | F10: 10759 | G10: 1006 | H10: 1 | I10: 0 | J10: 2 | K10: 5 | L10: 2 | M10: 1 | N10: 1 | O10: 0 | P10: b_1006 | Q10: 50 | R10: 0 | S10: 15 | T10: 1 | U10: 15 | V10: =SUM(U$5:U10) -> 90 | Y10: 150 | Z10: 250
A11: 10071 | B11: 剑意 | C11: 剑祖的剑意标记 | D11: icon_b1007 | E11: 10727 | F11: 10760 | G11: 1007 | H11: 50 | I11: 0 | J11: 2 | K11: -1 | L11: 2 | M11: 1 | N11: 0 | O11: 0 | P11: b_1007 | Q11: 50 | R11: 0 | S11: 15 | T11: 1 | U11: 15 | V11: =SUM(U$5:U11) -> 105 | Y11: 150 | Z11: 250
A12: 10081 | B12: 封禁 | C12: 法宝封禁不能充能，不能使用 | D12: icon_b1008 | E12: 10728 | F12: 10761 | G12: 1008 | H12: 1 | I12: 0 | J12: 2 | K12: 5 | L12: 2 | M12: 1 | N12: 1 | O12: 0 | P12: b_1008 | Q12: 50 | R12: 0 | S12: 15 | T12: 1 | U12: 15 | V12: =SUM(U$5:U12) -> 120 | Y12: 150 | Z12: 250
A13: 10091 | B13: 五行混乱 | C13: 敌人的功法每次使用功法都将使用最低灵根属性作为伤害计算 | D13: icon_b1009 | E13: 10729 | F13: 10762 | G13: 1009 | H13: 1 | I13: 0 | J13: 2 | K13: 15 | L13: 2 | M13: 1 | N13: 0 | O13: 0 | P13: b_1009 | Q13: 50 | R13: 0 | S13: 15 | T13: 1 | U13: 15 | V13: =SUM(U$5:U13) -> 135 | Y13: 150 | Z13: 250
D14: icon_b1010 | E14: 10730 | F14: 10763 | G14: 1010 | H14: 1 | I14: 2 | J14: 2 | K14: 10 | L14: 2 | M14: 1 | N14: 0 | O14: 0 | P14: b_1010 | Q14: 50 | R14: 0 | S14: 15 | T14: 1 | U14: 15 | V14: =SUM(U$5:U14) -> 150 | Y14: 150 | Z14: 250
A15: 10111 | B15: 流血 | C15: 敌人持续流血{0}金属性伤害，满层后每隔{1}秒放血一次 | D15: icon_b1011 | E15: 10731 | F15: 10764 | G15: 1011 | H15: 15 | I15: 2;10 | J15: 2 | K15: 15 | L15: 2 | M15: 1 | N15: 0 | O15: 0 | P15: b_1011 | Q15: 50 | R15: 0 | S15: 15 | T15: 1 | U15: 15 | V15: =SUM(U$5:U15) -> 165 | Y15: 150 | Z15: 250
A16: 10121 | B16: 放血 | C16: 敌人受到一次大量{0}%金属性命值伤害，后续流血伤害提升{1}% | D16: icon_b1012 | E16: 10732 | F16: 10765 | G16: 1012 | H16: 1 | I16: 70;30 | J16: 2 | K16: 10 | L16: 2 | M16: 1 | N16: 0 | O16: 0 | P16: b_1012 | Q16: 50 | R16: 0 | S16: 15 | T16: 1 | U16: 15 | V16: =SUM(U$5:U16) -> 180 | Y16: 150 | Z16: 250
A17: 10131 | B17: 细沙 | C17: 每一层土沙降低敌人{0}%防御 | D17: icon_b1013 | E17: 10733 | F17: 10766 | G17: 1013 | H17: 15 | I17: 2 | J17: 2 | K17: 15 | L17: 2 | M17: 1 | N17: 0 | O17: 0 | P17: b_1013 | Q17: 50 | R17: 0 | S17: 15 | T17: 1 | U17: 15 | V17: =SUM(U$5:U17) -> 195 | Y17: 150 | Z17: 250
D18: icon_b | E18: 10734 | F18: 10767 | H18: 10 | I18: 10 | J18: 2 | K18: 9 | L18: 2 | M18: 1 | N18: 0 | O18: 0 | P18: b_ | Q18: 50 | R18: 0 | S18: 15 | T18: 1 | U18: 15 | V18: =SUM(U$5:U18) -> 210 | Y18: 150 | Z18: 250
A19: =G19*10+1 -> 10151 | B19: 无敌 | C19: 无敌，不受到任何伤害，不受控制 | D19: icon_b1015 | E19: 10735 | F19: 10768 | G19: 1015 | H19: 1 | I19: 10 | J19: 2 | K19: 9 | L19: 1 | M19: 1 | N19: 0 | O19: 0 | P19: b_1015 | Q19: 50 | R19: 0 | S19: 15 | T19: 1 | U19: 15 | V19: =SUM(U$5:U19) -> 225 | Y19: 150 | Z19: 250
A20: 10161 | B20: 冰魄牢域 | C20: 乌龟的技能，神龟的所有主动伤害型技能命中目标后都会施加一层寒气， 寒气每叠到{0}层时，消耗所有层寒气对敌人造成{0}秒的冰冻效果 | D20: icon_b1016 | E20: 10736 | F20: 10769 | G20: 1016 | H20: 1 | I20: 10;2 | J20: 2 | K20: 9 | L20: 1 | M20: 1 | N20: 0 | O20: 0 | P20: b_1016 | Q20: 50 | R20: 0 | S20: 15 | T20: 1 | U20: 15 | V20: =SUM(U$5:U20) -> 240 | Y20: 150 | Z20: 250
A21: 10171 | B21: 鼠疫 | C21: 敌人受到每秒受到{0}*层数的伤害，持续期间攻击力降低{1}%*层数 | D21: icon_b1017 | E21: 10737 | F21: 10770 | G21: 1017 | H21: 15 | I21: 2;1 | J21: 2 | K21: 15 | L21: 2 | M21: 1 | N21: 0 | O21: 0 | P21: b_1017 | Q21: 50 | R21: 0 | S21: 15 | T21: 1 | U21: 15 | V21: =SUM(U$5:U21) -> 255 | Y21: 150 | Z21: 250
A22: 10181 | B22: 感电 | C22: 麻痹敌人，敌人的身体受到麻痹，有{0}%*层数的概率是功法无法进入释放状态,没触发一次，消耗一半感电 | D22: icon_b1018 | E22: 10738 | F22: 10771 | G22: 1018 | H22: 10 | I22: 2 | J22: 2 | K22: 15 | L22: 2 | M22: 1 | N22: 0 | O22: 0 | P22: b_1018 | Q22: 50 | R22: 0 | S22: 15 | T22: 1 | U22: 15 | V22: =SUM(U$5:U22) -> 270 | Y22: 150 | Z22: 250
A23: 10191 | B23: 筋脉封锁金 | C23: 封锁筋脉 | D23: icon_b1019 | E23: 10739 | F23: 10772 | G23: 1019 | H23: 1 | I23: 3 | J23: 2 | K23: 9 | L23: 2 | M23: 1 | N23: 0 | O23: 0 | P23: b_1019 | Q23: 50 | R23: 0 | S23: 15 | T23: 1 | U23: 15 | V23: =SUM(U$5:U23) -> 285 | Y23: 150 | Z23: 250
A24: 10201 | B24: 筋脉封锁木 | C24: 封锁筋脉 | D24: icon_b1020 | E24: 10740 | F24: 10773 | G24: 1020 | H24: 1 | I24: 3 | J24: 2 | K24: 9 | L24: 2 | M24: 1 | N24: 0 | O24: 0 | P24: b_1020 | Q24: 50 | R24: 0 | S24: 15 | T24: 1 | U24: 15 | V24: =SUM(U$5:U24) -> 300 | Y24: 150 | Z24: 250
A25: 10211 | B25: 筋脉封锁水 | C25: 封锁筋脉 | D25: icon_b1021 | E25: 10741 | F25: 10774 | G25: 1021 | H25: 1 | I25: 3 | J25: 2 | K25: 9 | L25: 2 | M25: 1 | N25: 0 | O25: 0 | P25: b_1021 | Q25: 50 | R25: 0 | S25: 15 | T25: 1 | U25: 15 | V25: =SUM(U$5:U25) -> 315 | Y25: 150 | Z25: 250
A26: 10221 | B26: 筋脉封锁火 | C26: 封锁筋脉 | D26: icon_b1022 | E26: 10742 | F26: 10775 | G26: 1022 | H26: 1 | I26: 3 | J26: 2 | K26: 9 | L26: 2 | M26: 1 | N26: 0 | O26: 0 | P26: b_1022 | Q26: 50 | R26: 0 | S26: 15 | T26: 1 | U26: 15 | V26: =SUM(U$5:U26) -> 330 | Y26: 150 | Z26: 250
A27: 10231 | B27: 筋脉封锁土 | C27: 封锁筋脉 | D27: icon_b1023 | E27: 10743 | F27: 10776 | G27: 1023 | H27: 1 | I27: 3 | J27: 2 | K27: 9 | L27: 2 | M27: 1 | N27: 0 | O27: 0 | P27: b_1023 | Q27: 50 | R27: 0 | S27: 15 | T27: 1 | U27: 15 | V27: =SUM(U$5:U27) -> 345 | Y27: 150 | Z27: 250
A28: 10241 | B28: 星辰印记 | C28: 星辰道升级获得的效果，在结算时收到层数对应的伤害 | D28: icon_b1024 | E28: 10744 | F28: 10777 | G28: 1024 | H28: 99 | I28: 3 | J28: 2 | K28: 9 | L28: 3 | M28: 1 | N28: 0 | O28: 0 | P28: b_1024 | Q28: 50 | R28: 0 | S28: 15 | T28: 1 | U28: 15 | V28: =SUM(U$5:U28) -> 360 | Y28: 150 | Z28: 250
A29: 10251 | B29: 控制 | C29: 不能释放功法，功法也不能充能完成 | D29: icon_b1025 | E29: 10745 | F29: 10778 | G29: 1025 | H29: 99 | I29: 3 | J29: 2 | K29: 9 | L29: 2 | M29: 1 | N29: 1 | O29: 0 | P29: b_1025 | Q29: 50 | R29: 0 | S29: 15 | T29: 1 | U29: 15 | V29: =SUM(U$5:U29) -> 375 | Y29: 150 | Z29: 250
A30: 10261 | B30: 大树隐身状态 | C30: 大树隐身状态 | D30: icon_b1026 | E30: 10746 | F30: 10779 | G30: 1026 | H30: 99 | I30: 3 | J30: 2 | K30: 9 | L30: 3 | M30: 1 | N30: 0 | O30: 0 | P30: b_1026 | Q30: 50 | R30: 0 | S30: 15 | T30: 1 | U30: 15 | V30: =SUM(U$5:U30) -> 390 | Y30: 150 | Z30: 250
A31: 10271 | B31: 阴水 | D31: icon_b1027 | E31: 10747 | F31: 10780 | G31: 1027 | H31: 99 | I31: 3 | J31: 2 | K31: 15 | L31: 2 | M31: 1 | N31: 0 | O31: 0 | P31: b_1027 | Q31: 50 | R31: 0 | S31: 15 | T31: 1 | U31: 15 | V31: =SUM(U$5:U31) -> 405 | Y31: 150 | Z31: 250
A32: 10281 | B32: 冰冻值 | D32: icon_b1028 | E32: 10748 | F32: 10781 | G32: 1028 | H32: 99 | I32: 3 | J32: 2 | K32: 15 | L32: 2 | M32: 1 | N32: 0 | O32: 0 | P32: b_1028 | Q32: 50 | R32: 0 | S32: 15 | T32: 1 | U32: 15 | V32: =SUM(U$5:U32) -> 420 | Y32: 150 | Z32: 250
A33: 10291 | B33: 金伤势 | C33: 影响金的灵根 | D33: icon_b1029 | E33: 10749 | F33: 10782 | G33: 1029 | H33: 15 | I33: 2 | J33: 2 | K33: 30 | L33: 2 | M33: 2 | N33: 0 | O33: 0 | P33: b_1029 | Q33: 50 | R33: 0 | S33: 15 | T33: 1 | U33: 15 | V33: =SUM(U$5:U33) -> 435 | Y33: 150 | Z33: 250
A34: 10301 | B34: 木伤势 | C34: 影响木的灵根 | D34: icon_b1030 | E34: 10750 | F34: 10783 | G34: 1030 | H34: 15 | I34: 2 | J34: 2 | K34: 30 | L34: 2 | M34: 2 | N34: 0 | O34: 0 | P34: b_1030 | Q34: 50 | R34: 0 | S34: 15 | T34: 1 | U34: 15 | V34: =SUM(U$5:U34) -> 450 | Y34: 150 | Z34: 250
A35: 10311 | B35: 水伤势 | C35: 影响水的灵根 | D35: icon_b1031 | E35: 10751 | F35: 10784 | G35: 1031 | H35: 15 | I35: 2 | J35: 2 | K35: 30 | L35: 2 | M35: 2 | N35: 0 | O35: 0 | P35: b_1031 | Q35: 50 | R35: 0 | S35: 15 | T35: 1 | U35: 15 | V35: =SUM(U$5:U35) -> 465 | Y35: 150 | Z35: 250
A36: 10321 | B36: 火伤势 | C36: 影响火的灵根 | D36: icon_b1032 | E36: 10752 | F36: 10785 | G36: 1032 | H36: 15 | I36: 2 | J36: 2 | K36: 30 | L36: 2 | M36: 2 | N36: 0 | O36: 0 | P36: b_1032 | Q36: 50 | R36: 0 | S36: 15 | T36: 1 | U36: 15 | V36: =SUM(U$5:U36) -> 480 | Y36: 150 | Z36: 250
A37: 10331 | B37: 土伤势 | C37: 影响土的灵根 | D37: icon_b1033 | E37: 10753 | F37: 10786 | G37: 1033 | H37: 15 | I37: 2 | J37: 2 | K37: 30 | L37: 2 | M37: 2 | N37: 0 | O37: 0 | P37: b_1033 | Q37: 50 | R37: 0 | S37: 15 | T37: 1 | U37: 15 | V37: =SUM(U$5:U37) -> 495 | Y37: 150 | Z37: 250

Sheet buff组说明
A1: 类型ID（对应的脚本名） | B1: 类型名 | C1: 效果说明
A2: 1001 | B2: 弱化 | C2: 秒伤降低5%*层数
A3: 1002 | B3: 虚弱 | C3: 最终伤害降低25%
A4: 1003 | B4: 撕裂/破甲 | C4: 防御力降低5%*层数
A5: 1004 | B5: 生命易伤 | C5: 生命受到伤害增加25%
A6: 1005 | B6: 恢复诅咒 | C6: 受治疗效果降低10%*层数（吸血除外）
A7: 1006 | B7: 寒冷 | C7: 闪避降低10%*层数，移动速度降低5%*层数
A8: 1007 | B8: 冰冻 | C8: 冻成冰块，无法闪避
A9: 1008 | B9: 感电 | C9: 护盾受到伤害+5%*层数
A10: 1009 | B10: 超载 | C10: 护盾立即破裂，且无法恢复
A11: 1010 | B11: 致盲 | C11: 命中降低50%
A12: 1011 | B12: 迟疑 | C12: 攻速降低30%
A13: 1012 | B13: 焦躁 | C13: 暴击几率下降50%
A14: 1013 | B14: 超重 | C14: 无法堆叠
A15: 1014 | B15: 沉默 | C15: 无法使用大招
A16: 1015 | B16: 减速 | C16: 移动速度减少10% * 层数
A17: 1016 | B17: 标记 | C17: 闪避降低50%
A18: 1017 | B18: 点燃 | C18: 每秒受到施加者中秒伤最高的300%秒伤 * 层数的伤害
A20: 1019 | B20: 眩晕 | C20: 无法移动，无法攻击，无法释放技能
A21: 1020 | B21: 禁锢 | C21: 无法移动
A22: 1021 | B22: 充能禁止 | C22: 期间大招无法充能
A23: 1022 | B23: 爆裂 | C23: 立即受到施加者中秒伤最高的300%秒伤的伤害，并对周围2m的敌人进行一次前面伤害30%的aoe伤害，同时对命中的没有护盾保护的敌人的敌人叠加一层“点燃”5s | E23: 点燃max + 1后触发，点燃buff消除
A24: 1023 | B24: 压制 | C24: 压制，不能不任何事
A26: 2001 | B26: 英雄秒伤强化 | C26: 伤害增加5%*层数
A27: 2002 | B27: 最终伤害强化 | C27: 最终伤害增加25%
A28: 2003 | B28: 防御强化 | C28: 防御力强化5%*层数
A29: 2004 | B29: 免伤 | C29: 生命/护盾受到伤害减少20%
A30: 2005 | B30: 生命免伤 | C30: 生命受到伤害减少25%
A31: 2006 | B31: 护盾免伤 | C31: 护盾受到伤害减少25%
A32: 2007 | B32: 祝福 | C32: 受治疗效果增加10%*层数（吸血不受影响）
A33: 2008 | B33: 无敌 | C33: 免疫控制，免疫伤害
A34: 2009 | B34: 霸体 | C34: 期间免疫控制，免疫debuff
A35: 2010 | B35: 狂暴 | C35: 攻速提升10%*层数（近战和远程）
A36: 2011 | B36: 近战狂暴 | C36: 近战攻速提升10%*层数
A37: 2012 | B37: 暴击强化 | C37: 暴击率提升10%*层数
A38: 2013 | B38: 嘲讽 | C38: 被敌人优先攻击
A39: 2014 | B39: 闪避强化 | C39: 闪避提升30%
A40: 2015 | B40: 吸血 | C40: 吸血提升30%
A41: 2016 | B41: 生命恢复 | C41: 每秒生命恢复1%*层数（这个恢复最高限制为施加者秒伤的500%）
A42: 2017 | B42: 护盾充能 | C42: 每秒护盾恢复2%*层数（这个恢复最高限制为施加者秒伤的500%）
A43: 2018 | B43: 不能被选取 | C43: 不能被选取，无法被敌人作为目标选取到
A44: 2019 | B44: 连击 | C44: 下一次释放小技能时，10% * 层数的概率再释放一次 （这个buff一直持续到下次释放小技能，释放后buff也消失）
A46: 3001 | C46: 藏宝图默认玩法中怪物的额外掉落
B52: 备注：0915删除了藏宝图中的冒险BUFF
